[Event "Late-Titled-Tuesday-Blitz-May-28-2024"]
[Site "Chess.com"]
[Date "2024.05.28"]
[Round "6"]
[White "RAU4ever"]
[Black "yaguigor"]
[Result "1/2-1/2"]
[WhiteElo "2372"]
[BlackElo "2587"]
[TimeControl "180+1"]
[EndTime "15:07:42 PDT"]
[Termination "Game drawn by repetition"]

1. e4 {[%clk 0:03:00.9]} 1... c5 {[%clk 0:02:59.6]} 2. Nf3 {[%clk 0:02:58.4]}
2... Nc6 {[%clk 0:03:00]} 3. d4 {[%clk 0:02:58.8]} 3... cxd4 {[%clk 0:02:59.6]}
4. Nxd4 {[%clk 0:02:59.7]} 4... Qb6 {[%clk 0:02:58.3]} 5. Nb3 {[%clk 0:02:58.7]}
5... Nf6 {[%clk 0:02:58.5]} 6. Nc3 {[%clk 0:02:48.8]} 6... e6 {[%clk 0:02:58.6]}
7. Be3 {[%clk 0:02:48.3]} 7... Qc7 {[%clk 0:02:57.7]} 8. Nb5 {[%clk 0:02:46.3]}
8... Qb8 {[%clk 0:02:56.3]} 9. Bd3 {[%clk 0:02:27.5]} 9... d5 {[%clk 0:02:53.9]}
10. Qf3 {[%clk 0:01:52.7]} 10... Ne5 {[%clk 0:01:52.7]} 11. Qg3 {[%clk
0:01:52.1]} 11... Nxd3+ {[%clk 0:01:24.7]} 12. cxd3 {[%clk 0:01:50.8]} 12... e5
{[%clk 0:01:20.2]} 13. Rc1 {[%clk 0:01:45.1]} 13... Bb4+ {[%clk 0:01:17]} 14.
Bd2 {[%clk 0:01:41.1]} 14... Bxd2+ {[%clk 0:01:16.3]} 15. Nxd2 {[%clk 0:01:42]}
15... O-O {[%clk 0:01:12.3]} 16. Nc7 {[%clk 0:01:41.4]} 16... Be6 {[%clk
0:00:59.8]} 17. Nxa8 {[%clk 0:01:29.6]} 17... Qxa8 {[%clk 0:00:59.1]} 18. Qxe5
{[%clk 0:01:29.9]} 18... dxe4 {[%clk 0:00:58.8]} 19. Nxe4 {[%clk 0:01:25.6]}
19... Nxe4 {[%clk 0:00:58]} 20. dxe4 {[%clk 0:01:26.5]} 20... Bxa2 {[%clk
0:00:56.9]} 21. O-O {[%clk 0:01:25.9]} 21... Re8 {[%clk 0:00:55.4]} 22. Qf4
{[%clk 0:01:22.7]} 22... b5 {[%clk 0:00:52.2]} 23. e5 {[%clk 0:01:08.5]} 23...
Qd5 {[%clk 0:00:44.8]} 24. Rfe1 {[%clk 0:01:08.4]} 24... Bb3 {[%clk 0:00:41.4]}
25. Rc3 {[%clk 0:00:56.7]} 25... a5 {[%clk 0:00:38.9]} 26. Rg3 {[%clk
0:00:55.8]} 26... Re6 {[%clk 0:00:30.5]} 27. h4 {[%clk 0:00:54.9]} 27... h6
{[%clk 0:00:29.7]} 28. h5 {[%clk 0:00:51.5]} 28... a4 {[%clk 0:00:26.6]} 29. Rc1
{[%clk 0:00:47.9]} 29... Bc4 {[%clk 0:00:25.6]} 30. Re3 {[%clk 0:00:45.4]} 30...
Qd2 {[%clk 0:00:23.2]} 31. Rxc4 {[%clk 0:00:27.9]} 31... bxc4 {[%clk 0:00:19.7]}
32. Qxc4 {[%clk 0:00:28.8]} 32... Qd1+ {[%clk 0:00:19.8]} 33. Kh2 {[%clk
0:00:28.8]} 33... Qxh5+ {[%clk 0:00:19.7]} 34. Kg1 {[%clk 0:00:29.5]} 34... Qd1+
{[%clk 0:00:18.9]} 35. Kh2 {[%clk 0:00:29.6]} 35... Qh5+ {[%clk 0:00:18.5]} 36.
Kg1 {[%clk 0:00:29.7]} 36... Rxe5 {[%clk 0:00:12.1]} 37. Rxe5 {[%clk 0:00:26]}
37... Qxe5 {[%clk 0:00:11.4]} 38. Qxa4 {[%clk 0:00:26.6]} 38... Qxb2 {[%clk
0:00:11.6]} 39. Qa8+ {[%clk 0:00:26]} 39... Kh7 {[%clk 0:00:11]} 40. Qe4+ {[%clk
0:00:26.6]} 40... g6 {[%clk 0:00:10.4]} 41. g3 {[%clk 0:00:25.9]} 41... Qb3
{[%clk 0:00:09.5]} 42. Qe5 {[%clk 0:00:24.4]} 42... h5 {[%clk 0:00:09.6]} 43.
Qf6 {[%clk 0:00:24.5]} 43... Qd5 {[%clk 0:00:09.2]} 44. Kh2 {[%clk 0:00:24.3]}
44... Qe6 {[%clk 0:00:08.3]} 45. Qd4 {[%clk 0:00:22.9]} 45... Qf5 {[%clk
0:00:08.3]} 46. Kg1 {[%clk 0:00:21.6]} 46... Qf3 {[%clk 0:00:07.4]} 47. Kh2
{[%clk 0:00:20.9]} 47... Qf5 {[%clk 0:00:05.8]} 48. Kg1 {[%clk 0:00:21.2]} 48...
g5 {[%clk 0:00:06.2]} 49. Kh2 {[%clk 0:00:21.2]} 49... Kg6 {[%clk 0:00:05.6]}
50. Kg1 {[%clk 0:00:21.5]} 50... f6 {[%clk 0:00:05.7]} 51. Kg2 {[%clk
0:00:21.7]} 51... Qe5 {[%clk 0:00:05.9]} 52. Qd8 {[%clk 0:00:18.7]} 52... Qe4+
{[%clk 0:00:05.6]} 53. Kg1 {[%clk 0:00:19]} 53... Qe6 {[%clk 0:00:05.9]} 54. Qd4
{[%clk 0:00:18.3]} 54... Kh6 {[%clk 0:00:04.8]} 55. Qd8 {[%clk 0:00:17.2]} 55...
Kg6 {[%clk 0:00:04.6]} 56. Qd4 {[%clk 0:00:16.7]} 56... Qe1+ {[%clk 0:00:04.7]}
57. Kg2 {[%clk 0:00:16.8]} 57... Qe5 {[%clk 0:00:05.6]} 58. Qd8 {[%clk
0:00:16.1]} 58... Qe4+ {[%clk 0:00:04.6]} 59. Kg1 {[%clk 0:00:16.3]} 59... Qe1+
{[%clk 0:00:04.1]} 60. Kg2 {[%clk 0:00:16.4]} 60... Qe4+ {[%clk 0:00:05]}
1/2-1/2

[Event "Late-Titled-Tuesday-Blitz-May-28-2024"]
[Site "Chess.com"]
[Date "2024.05.28"]
[Round "6"]
[White "crazycheesecake"]
[Black "Hakiki_satranc"]
[Result "0-1"]
[WhiteElo "2143"]
[BlackElo "2403"]
[TimeControl "180+1"]
[EndTime "15:07:43 PDT"]
[Termination "Hakiki_satranc won by resignation"]

1. Nf3 {[%clk 0:03:00.9]} 1... d5 {[%clk 0:02:56.3]} 2. c4 {[%clk 0:03:00.9]}
2... e6 {[%clk 0:02:55.2]} 3. g3 {[%clk 0:03:00.4]} 3... c6 {[%clk 0:02:53.9]}
4. b3 {[%clk 0:02:59.1]} 4... Be7 {[%clk 0:02:46.2]} 5. Bb2 {[%clk 0:02:56.7]}
5... Bf6 {[%clk 0:02:46.8]} 6. Nc3 {[%clk 0:02:38.6]} 6... h5 {[%clk 0:02:41.1]}
7. Bg2 {[%clk 0:02:30]} 7... h4 {[%clk 0:02:40.3]} 8. d4 {[%clk 0:02:22.4]} 8...
hxg3 {[%clk 0:02:37.1]} 9. hxg3 {[%clk 0:02:21.6]} 9... Rxh1+ {[%clk 0:02:38]}
10. Bxh1 {[%clk 0:02:21.6]} 10... dxc4 {[%clk 0:02:25.7]} 11. bxc4 {[%clk
0:02:18.4]} 11... c5 {[%clk 0:02:26.3]} 12. Ne4 {[%clk 0:02:10.4]} 12... cxd4
{[%clk 0:02:14.9]} 13. Nxf6+ {[%clk 0:02:04.9]} 13... Nxf6 {[%clk 0:02:15.8]}
14. Nxd4 {[%clk 0:01:51.7]} 14... a6 {[%clk 0:02:04.3]} 15. Qb3 {[%clk
0:01:46.5]} 15... Qc7 {[%clk 0:02:03]} 16. Ba3 {[%clk 0:01:19.7]} 16... Nbd7
{[%clk 0:02:01.3]} 17. Qb4 {[%clk 0:01:15.9]} 17... Ng8 {[%clk 0:01:49.1]} 18.
Rd1 {[%clk 0:00:33.8]} 18... Rb8 {[%clk 0:01:36.8]} 19. Bf3 {[%clk 0:00:32.1]}
19... a5 {[%clk 0:01:28.2]} 20. Nxe6 {[%clk 0:00:18.7]} 20... axb4 {[%clk
0:01:22.4]} 21. Nxc7+ {[%clk 0:00:18.7]} 21... Kd8 {[%clk 0:01:23.3]} 22. Bxb4
{[%clk 0:00:18.7]} 22... Kxc7 {[%clk 0:01:22.5]} 23. Bd6+ {[%clk 0:00:19.3]}
23... Kb6 {[%clk 0:01:20.4]} 24. Bxb8 {[%clk 0:00:20]} 24... Nxb8 {[%clk
0:01:20.7]} 25. Rd8 {[%clk 0:00:18.9]} 25... Ne7 {[%clk 0:01:19.2]} 26. Re8
{[%clk 0:00:19.5]} 26... Nbc6 {[%clk 0:00:28.7]} 27. Bxc6 {[%clk 0:00:19.2]}
27... Kxc6 {[%clk 0:00:29.6]} 28. Rxe7 {[%clk 0:00:19.1]} 28... Be6 {[%clk
0:00:30.5]} 29. Re8 {[%clk 0:00:19.2]} 29... Bxc4 {[%clk 0:00:29.5]} 30. Ra8
{[%clk 0:00:19.8]} 30... g6 {[%clk 0:00:27.1]} 31. e4 {[%clk 0:00:19]} 31... Kc5
{[%clk 0:00:24.4]} 32. Rc8+ {[%clk 0:00:18.6]} 32... Kd4 {[%clk 0:00:23.9]} 33.
f3 {[%clk 0:00:18.8]} 33... Bxa2 {[%clk 0:00:22.1]} 34. Rc7 {[%clk 0:00:19.4]}
34... Ke3 {[%clk 0:00:20.1]} 35. Rxb7 {[%clk 0:00:17.8]} 35... Kxf3 {[%clk
0:00:19.7]} 36. e5 {[%clk 0:00:17.4]} 36... Kxg3 {[%clk 0:00:18.8]} 37. Ke2
{[%clk 0:00:17.5]} 37... Kf4 {[%clk 0:00:16.6]} 38. Rb5 {[%clk 0:00:16.3]} 38...
Ke4 {[%clk 0:00:15.9]} 39. Ra5 {[%clk 0:00:14.8]} 39... Bd5 {[%clk 0:00:15.7]}
40. Kf2 {[%clk 0:00:13.6]} 40... Kxe5 {[%clk 0:00:15.6]} 41. Ke3 {[%clk
0:00:14.3]} 41... f5 {[%clk 0:00:15.1]} 42. Ra7 {[%clk 0:00:13.4]} 42... g5
{[%clk 0:00:15]} 43. Re7+ {[%clk 0:00:12.5]} 43... Kf6 {[%clk 0:00:15]} 44. Rd7
{[%clk 0:00:12]} 44... f4+ {[%clk 0:00:14]} 45. Kf2 {[%clk 0:00:11.8]} 45... Ke5
{[%clk 0:00:13.9]} 46. Rg7 {[%clk 0:00:10.7]} 46... Kf5 {[%clk 0:00:14.4]} 47.
Rd7 {[%clk 0:00:10.3]} 47... Be4 {[%clk 0:00:13.6]} 48. Rf7+ {[%clk 0:00:09.9]}
48... Ke5 {[%clk 0:00:13.5]} 49. Rg7 {[%clk 0:00:09.5]} 49... Kf5 {[%clk
0:00:12.9]} 50. Rf7+ {[%clk 0:00:09.5]} 50... Kg6 {[%clk 0:00:12]} 51. Re7
{[%clk 0:00:09.2]} 51... Bd5 {[%clk 0:00:11.9]} 52. Re5 {[%clk 0:00:08.7]} 52...
Ba8 {[%clk 0:00:11.3]} 53. Ra5 {[%clk 0:00:08.3]} 53... Be4 {[%clk 0:00:10.6]}
54. Re5 {[%clk 0:00:06.3]} 54... Bf5 {[%clk 0:00:10.2]} 55. Ra5 {[%clk
0:00:06.1]} 55... g4 {[%clk 0:00:09.4]} 56. Kg2 {[%clk 0:00:05.1]} 56... Kg5
{[%clk 0:00:09.1]} 57. Ra8 {[%clk 0:00:05.5]} 57... Be4+ {[%clk 0:00:08.8]} 58.
Kf2 {[%clk 0:00:05.2]} 58... Bxa8 {[%clk 0:00:09.7]} 0-1

[Event "Late-Titled-Tuesday-Blitz-May-28-2024"]
[Site "Chess.com"]
[Date "2024.05.28"]
[Round "6"]
[White "brunoo2003"]
[Black "jcmesafischer"]
[Result "1-0"]
[WhiteElo "2584"]
[BlackElo "2361"]
[TimeControl "180+1"]
[EndTime "15:07:45 PDT"]
[Termination "brunoo2003 won by checkmate"]

1. c4 {[%clk 0:03:00.9]} 1... Nf6 {[%clk 0:02:59.5]} 2. Nf3 {[%clk 0:03:00.9]}
2... e6 {[%clk 0:02:59.4]} 3. g3 {[%clk 0:03:00.1]} 3... d5 {[%clk 0:03:00]} 4.
Bg2 {[%clk 0:03:00.2]} 4... Be7 {[%clk 0:02:59.8]} 5. d4 {[%clk 0:03:00.1]} 5...
O-O {[%clk 0:02:59.3]} 6. O-O {[%clk 0:03:00.6]} 6... dxc4 {[%clk 0:02:59.4]} 7.
Nc3 {[%clk 0:02:59.2]} 7... a6 {[%clk 0:02:57.2]} 8. Ne5 {[%clk 0:02:57.6]} 8...
c5 {[%clk 0:02:51.3]} 9. dxc5 {[%clk 0:02:55.8]} 9... Bxc5 {[%clk 0:02:50]} 10.
Nxc4 {[%clk 0:02:53.5]} 10... Qc7 {[%clk 0:02:48.4]} 11. Qb3 {[%clk 0:02:52]}
11... Nc6 {[%clk 0:02:45.9]} 12. Bf4 {[%clk 0:02:48.3]} 12... e5 {[%clk
0:02:45.5]} 13. Bg5 {[%clk 0:02:48.8]} 13... Be6 {[%clk 0:02:28.8]} 14. Bxf6
{[%clk 0:02:34.2]} 14... Na5 {[%clk 0:02:23.2]} 15. Bxe5 {[%clk 0:02:18.8]}
15... Nxb3 {[%clk 0:01:54.7]} 16. Bxc7 {[%clk 0:02:13.4]} 16... Nxa1 {[%clk
0:01:55.3]} 17. Bxb7 {[%clk 0:01:37]} 17... Ra7 {[%clk 0:01:52.6]} 18. Bd6
{[%clk 0:01:32.3]} 18... Bxd6 {[%clk 0:01:42.9]} 19. Nxd6 {[%clk 0:01:33.2]}
19... Nc2 {[%clk 0:01:42.3]} 20. Rc1 {[%clk 0:01:03.9]} 20... Nd4 {[%clk
0:01:18.9]} 21. Bg2 {[%clk 0:00:56.5]} 21... Rd8 {[%clk 0:01:14.8]} 22. Nb7
{[%clk 0:00:51.2]} 22... Rb8 {[%clk 0:01:14.6]} 23. Na5 {[%clk 0:00:37.1]} 23...
Rxb2 {[%clk 0:01:09.5]} 24. Rd1 {[%clk 0:00:34.8]} 24... Rd7 {[%clk 0:01:01.4]}
25. Kf1 {[%clk 0:00:19.9]} 25... Rc2 {[%clk 0:00:56.6]} 26. Ne4 {[%clk
0:00:14.6]} 26... Rxa2 {[%clk 0:00:45.3]} 27. Nc5 {[%clk 0:00:13.3]} 27... Rxa5
{[%clk 0:00:44.3]} 28. Nxd7 {[%clk 0:00:13.3]} 28... Bxd7 {[%clk 0:00:44.5]} 29.
e3 {[%clk 0:00:02.3]} 29... Bb5+ {[%clk 0:00:43]} 30. Kg1 {[%clk 0:00:02.8]}
30... Ne6 {[%clk 0:00:43.5]} 31. Kh1 {[%clk 0:00:03.7]} 31... Kf8 {[%clk
0:00:42.3]} 32. f4 {[%clk 0:00:04.1]} 32... g6 {[%clk 0:00:35.4]} 33. e4 {[%clk
0:00:04]} 33... Ra2 {[%clk 0:00:32.4]} 34. e5 {[%clk 0:00:03.9]} 34... Rc2
{[%clk 0:00:29.8]} 35. Be4 {[%clk 0:00:03.2]} 35... Bc6 {[%clk 0:00:29.8]} 36.
Bxc6 {[%clk 0:00:01.7]} 36... Rxc6 {[%clk 0:00:30.7]} 37. Ra1 {[%clk 0:00:01.8]}
37... h5 {[%clk 0:00:26.1]} 38. Kg2 {[%clk 0:00:02.3]} 38... Nd4 {[%clk
0:00:26]} 39. Kf2 {[%clk 0:00:02.3]} 39... Nb3 {[%clk 0:00:21.3]} 40. Ra3 {[%clk
0:00:02.4]} 40... Rb6 {[%clk 0:00:20.9]} 41. Ke3 {[%clk 0:00:02.8]} 41... a5
{[%clk 0:00:20.8]} 42. Kd3 {[%clk 0:00:02.6]} 42... Ke7 {[%clk 0:00:10.8]} 43.
Kc4 {[%clk 0:00:03]} 43... Rb4+ {[%clk 0:00:05.8]} 44. Kc3 {[%clk 0:00:03]}
44... Nc5 {[%clk 0:00:01]} 45. Rxa5 {[%clk 0:00:02.4]} 45... Rb2 {[%clk
0:00:01]} 46. Kc4 {[%clk 0:00:02.8]} 46... Rxh2 {[%clk 0:00:01]} 47. Ra7+ {[%clk
0:00:03.4]} 47... Kf8 {[%clk 0:00:01]} 48. Kxc5 {[%clk 0:00:04.3]} 48... Kg7
{[%clk 0:00:01.6]} 49. e6 {[%clk 0:00:03.8]} 49... Rc2+ {[%clk 0:00:02.2]} 50.
Kd4 {[%clk 0:00:04.1]} 50... Kf8 {[%clk 0:00:02.2]} 51. Rxf7+ {[%clk 0:00:03.6]}
51... Ke8 {[%clk 0:00:03]} 52. Ke5 {[%clk 0:00:04]} 52... Rc3 {[%clk 0:00:01.7]}
53. Kf6 {[%clk 0:00:04.1]} 53... Rxg3 {[%clk 0:00:02.3]} 54. Ra7 {[%clk
0:00:04.3]} 54... Kd8 {[%clk 0:00:02.2]} 55. e7+ {[%clk 0:00:03.9]} 55... Kc8
{[%clk 0:00:02.3]} 56. e8=Q# {[%clk 0:00:03.6]} 1-0

[Event "Late-Titled-Tuesday-Blitz-May-28-2024"]
[Site "Chess.com"]
[Date "2024.05.28"]
[Round "6"]
[White "lamomiajunior"]
[Black "jcibarra"]
[Result "0-1"]
[WhiteElo "2739"]
[BlackElo "2907"]
[TimeControl "180+1"]
[EndTime "15:07:47 PDT"]
[Termination "jcibarra won on time"]

1. d4 {[%clk 0:03:00.9]} 1... Nf6 {[%clk 0:02:58.9]} 2. Nc3 {[%clk 0:03:01.4]}
2... d6 {[%clk 0:02:56.9]} 3. e4 {[%clk 0:03:00.9]} 3... e5 {[%clk 0:02:57.5]}
4. Nf3 {[%clk 0:03:00.5]} 4... exd4 {[%clk 0:02:58]} 5. Nxd4 {[%clk 0:03:00.3]}
5... Be7 {[%clk 0:02:58.6]} 6. Bf4 {[%clk 0:02:59]} 6... O-O {[%clk 0:02:58.2]}
7. Qd2 {[%clk 0:02:58.4]} 7... d5 {[%clk 0:02:56.7]} 8. e5 {[%clk 0:02:03.2]}
8... Nh5 {[%clk 0:02:54.2]} 9. Nb3 {[%clk 0:01:54]} 9... Nxf4 {[%clk 0:02:48.7]}
10. Qxf4 {[%clk 0:01:54.9]} 10... c5 {[%clk 0:02:48.8]} 11. h4 {[%clk
0:01:46.2]} 11... Nc6 {[%clk 0:02:43.7]} 12. O-O-O {[%clk 0:01:39.2]} 12... Be6
{[%clk 0:02:43.4]} 13. Nxd5 {[%clk 0:01:20.4]} 13... Bxd5 {[%clk 0:02:42.3]} 14.
c4 {[%clk 0:01:15.3]} 14... Qc7 {[%clk 0:02:28.1]} 15. Rxd5 {[%clk 0:00:48.6]}
15... Nb4 {[%clk 0:02:21.9]} 16. Kb1 {[%clk 0:00:42.9]} 16... Rad8 {[%clk
0:01:57.7]} 17. Rxd8 {[%clk 0:00:31.3]} 17... Rxd8 {[%clk 0:01:57.3]} 18. Be2
{[%clk 0:00:25.6]} 18... Nc6 {[%clk 0:01:57.4]} 19. Bf3 {[%clk 0:00:20.7]} 19...
Qxe5 {[%clk 0:01:18.6]} 20. Qxe5 {[%clk 0:00:18.9]} 20... Nxe5 {[%clk
0:01:19.5]} 21. Bd5 {[%clk 0:00:18]} 21... b5 {[%clk 0:01:15.2]} 22. Re1 {[%clk
0:00:13.3]} 22... Bf6 {[%clk 0:01:05]} 23. Nxc5 {[%clk 0:00:11.4]} 23... bxc4
{[%clk 0:01:00.9]} 24. Be4 {[%clk 0:00:10.1]} 24... Rd2 {[%clk 0:00:37]} 25. f4
{[%clk 0:00:08.5]} 25... Bxh4 {[%clk 0:00:25]} 26. Rh1 {[%clk 0:00:05.6]} 26...
Bf2 {[%clk 0:00:20.9]} 27. Bxh7+ {[%clk 0:00:04.6]} 27... Kf8 {[%clk 0:00:20.3]}
28. Ne4 {[%clk 0:00:05.5]} 28... Re2 {[%clk 0:00:10.9]} 29. Nxf2 {[%clk
0:00:05.5]} 29... Nd7 {[%clk 0:00:07.6]} 30. Nd1 {[%clk 0:00:05.3]} 30... g6
{[%clk 0:00:07.5]} 31. f5 {[%clk 0:00:04.5]} 31... Kg7 {[%clk 0:00:08]} 32. fxg6
{[%clk 0:00:04.6]} 32... fxg6 {[%clk 0:00:08.9]} 33. Nc3 {[%clk 0:00:03.6]}
33... Rxg2 {[%clk 0:00:08.5]} 34. Nd5 {[%clk 0:00:04.1]} 34... Nf8 {[%clk
0:00:08.1]} 35. Nf4 {[%clk 0:00:02.7]} 35... Rg4 {[%clk 0:00:05.2]} 36. Bxg6
{[%clk 0:00:03.6]} 36... Rxf4 {[%clk 0:00:05]} 37. Bc2 {[%clk 0:00:03.5]} 37...
Kf6 {[%clk 0:00:04.6]} 38. Rd1 {[%clk 0:00:03.8]} 38... Ke7 {[%clk 0:00:03.7]}
39. a3 {[%clk 0:00:04.7]} 39... Ne6 {[%clk 0:00:04.1]} 40. Ba4 {[%clk
0:00:04.8]} 40... Nd4 {[%clk 0:00:04.3]} 41. Bc2 {[%clk 0:00:05.7]} 41... Kd6
{[%clk 0:00:04.4]} 42. Rh1 {[%clk 0:00:04.1]} 42... Rf2 {[%clk 0:00:02]} 43.
Rh6+ {[%clk 0:00:02.9]} 43... Kc5 {[%clk 0:00:02.4]} 44. Ba4 {[%clk 0:00:02.4]}
44... Rf1+ {[%clk 0:00:02.2]} 45. Ka2 {[%clk 0:00:02.7]} 45... Rf2 {[%clk
0:00:02.9]} 46. Kb1 {[%clk 0:00:02.5]} 46... Nf3 {[%clk 0:00:02.4]} 47. Rh5+
{[%clk 0:00:03]} 47... Kd4 {[%clk 0:00:02.6]} 48. Rh6 {[%clk 0:00:02.2]} 48...
Nd2+ {[%clk 0:00:03]} 49. Ka2 {[%clk 0:00:02.9]} 49... Ne4 {[%clk 0:00:03.5]}
50. Kb1 {[%clk 0:00:01.7]} 50... c3 {[%clk 0:00:03.6]} 51. Bc2 {[%clk 0:00:01]}
51... Nd2+ {[%clk 0:00:02.7]} 52. Ka2 {[%clk 0:00:01.6]} 52... Nc4 {[%clk
0:00:02.4]} 53. bxc3+ {[%clk 0:00:02.2]} 53... Kxc3 {[%clk 0:00:02.8]} 54. Rh3+
{[%clk 0:00:01.8]} 54... Kxc2 {[%clk 0:00:03.1]} 0-1

[Event "Late-Titled-Tuesday-Blitz-May-28-2024"]
[Site "Chess.com"]
[Date "2024.05.28"]
[Round "6"]
[White "Connectedcloud"]
[Black "HajiyevKanan"]
[Result "0-1"]
[WhiteElo "2221"]
[BlackElo "2468"]
[TimeControl "180+1"]
[EndTime "15:07:48 PDT"]
[Termination "HajiyevKanan won by checkmate"]

1. e4 {[%clk 0:03:00.1]} 1... a6 {[%clk 0:03:00.3]} 2. d4 {[%clk 0:02:57.3]}
2... b5 {[%clk 0:03:00.6]} 3. Nf3 {[%clk 0:02:56.8]} 3... Bb7 {[%clk 0:03:01.3]}
4. Bd3 {[%clk 0:02:56.9]} 4... Nf6 {[%clk 0:03:01.5]} 5. Qe2 {[%clk 0:02:56.1]}
5... e6 {[%clk 0:03:01.2]} 6. c3 {[%clk 0:02:56.2]} 6... c5 {[%clk 0:03:01.6]}
7. O-O {[%clk 0:02:55.4]} 7... Be7 {[%clk 0:03:02.1]} 8. Nbd2 {[%clk 0:02:55.2]}
8... O-O {[%clk 0:03:02.4]} 9. a4 {[%clk 0:02:55.6]} 9... d6 {[%clk 0:03:02.5]}
10. axb5 {[%clk 0:02:54.9]} 10... axb5 {[%clk 0:03:02.4]} 11. Rxa8 {[%clk
0:02:53.8]} 11... Bxa8 {[%clk 0:03:03.3]} 12. Bxb5 {[%clk 0:02:52.5]} 12... cxd4
{[%clk 0:03:03.4]} 13. cxd4 {[%clk 0:02:52.1]} 13... Qb6 {[%clk 0:03:03.7]} 14.
Bd3 {[%clk 0:02:51.9]} 14... Nc6 {[%clk 0:03:03.5]} 15. Nc4 {[%clk 0:02:49.1]}
15... Qb3 {[%clk 0:03:02.1]} 16. Be3 {[%clk 0:02:44.5]} 16... Nb4 {[%clk
0:03:01.2]} 17. Bb1 {[%clk 0:02:38.5]} 17... Nxe4 {[%clk 0:02:42.5]} 18. Nfd2
{[%clk 0:02:26.6]} 18... Nxd2 {[%clk 0:02:40.7]} 19. Bxd2 {[%clk 0:02:20.6]}
19... Bd5 {[%clk 0:02:31.2]} 20. Ne3 {[%clk 0:02:19.9]} 20... Bb7 {[%clk
0:02:21.3]} 21. Bc3 {[%clk 0:02:10.2]} 21... Ba6 {[%clk 0:02:18.2]} 22. Qd1
{[%clk 0:02:02.4]} 22... Qxd1 {[%clk 0:02:16.6]} 23. Rxd1 {[%clk 0:02:03.3]}
23... d5 {[%clk 0:02:12.7]} 24. f3 {[%clk 0:01:56.8]} 24... Rb8 {[%clk
0:02:12.4]} 25. Kf2 {[%clk 0:01:56.9]} 25... Bd6 {[%clk 0:02:11.1]} 26. g3
{[%clk 0:01:53.6]} 26... Kf8 {[%clk 0:02:11.6]} 27. Rd2 {[%clk 0:01:49.6]} 27...
g6 {[%clk 0:02:11.7]} 28. f4 {[%clk 0:01:46]} 28... h5 {[%clk 0:02:11.6]} 29.
Rd1 {[%clk 0:01:22.8]} 29... Ke7 {[%clk 0:02:11.3]} 30. Rd2 {[%clk 0:01:22.9]}
30... Nc6 {[%clk 0:02:11.1]} 31. Bd3 {[%clk 0:01:20.4]} 31... Bxd3 {[%clk
0:02:11]} 32. Rxd3 {[%clk 0:01:21.3]} 32... Rb3 {[%clk 0:02:10.8]} 33. Rd2
{[%clk 0:01:19.3]} 33... Kd7 {[%clk 0:01:59.3]} 34. Nd1 {[%clk 0:01:09.3]} 34...
Nb4 {[%clk 0:01:54.6]} 35. Ne3 {[%clk 0:01:04.4]} 35... Na2 {[%clk 0:01:53.1]}
36. Nd1 {[%clk 0:01:01.3]} 36... Kc6 {[%clk 0:01:45]} 37. Rc2 {[%clk 0:00:56.2]}
37... Kb5 {[%clk 0:01:44.7]} 38. Bd2 {[%clk 0:00:53]} 38... Kb6 {[%clk
0:01:38.3]} 39. Bc3 {[%clk 0:00:37.9]} 39... Kb7 {[%clk 0:01:38]} 40. h3 {[%clk
0:00:30]} 40... Bb4 {[%clk 0:01:36.6]} 41. h4 {[%clk 0:00:27.2]} 41... Kb6
{[%clk 0:01:27.9]} 42. Ke2 {[%clk 0:00:20.7]} 42... Kb5 {[%clk 0:01:27.4]} 43.
Kd3 {[%clk 0:00:17.1]} 43... Bxc3 {[%clk 0:01:26.4]} 44. Nxc3+ {[%clk
0:00:16.5]} 44... Kb4 {[%clk 0:01:24.8]} 45. Kd2 {[%clk 0:00:15.7]} 45... Nxc3
{[%clk 0:01:19.4]} 46. bxc3+ {[%clk 0:00:15.3]} 46... Kc4 {[%clk 0:01:18.7]} 47.
Rc1 {[%clk 0:00:15]} 47... Rb2+ {[%clk 0:01:16.8]} 48. Rc2 {[%clk 0:00:14.5]}
48... Rb1 {[%clk 0:01:17.5]} 49. Ra2 {[%clk 0:00:13.9]} 49... Rg1 {[%clk
0:01:14.1]} 50. Ra4+ {[%clk 0:00:13.3]} 50... Kb5 {[%clk 0:01:13.9]} 51. Ra7
{[%clk 0:00:13.2]} 51... Rg2+ {[%clk 0:01:12.6]} 52. Kc1 {[%clk 0:00:12.9]}
52... Rxg3 {[%clk 0:01:13.2]} 53. Rxf7 {[%clk 0:00:12.5]} 53... Rxc3+ {[%clk
0:01:13.3]} 54. Kd2 {[%clk 0:00:13.1]} 54... Rh3 {[%clk 0:01:13]} 55. Rf6 {[%clk
0:00:12.3]} 55... Rxh4 {[%clk 0:01:12.6]} 56. Rxe6 {[%clk 0:00:10.6]} 56... Rg4
{[%clk 0:01:08]} 57. Ke3 {[%clk 0:00:07.7]} 57... h4 {[%clk 0:01:07.6]} 58. Kf3
{[%clk 0:00:01.1]} 58... Rg3+ {[%clk 0:01:07.5]} 59. Kf2 {[%clk 0:00:01.8]}
59... Kc4 {[%clk 0:01:08.1]} 60. Rd6 {[%clk 0:00:01.9]} 60... Kxd4 {[%clk
0:01:08.2]} 61. Rf6 {[%clk 0:00:02.8]} 61... Ke4 {[%clk 0:01:07.9]} 62. f5
{[%clk 0:00:02.6]} 62... gxf5 {[%clk 0:01:07.6]} 63. Re6+ {[%clk 0:00:03.2]}
63... Kf4 {[%clk 0:01:07.5]} 64. Rd6 {[%clk 0:00:04.1]} 64... Ke5 {[%clk
0:01:07.3]} 65. Ra6 {[%clk 0:00:04.9]} 65... d4 {[%clk 0:01:07.5]} 66. Ra4
{[%clk 0:00:05.8]} 66... Ke4 {[%clk 0:01:07.6]} 67. Ra5 {[%clk 0:00:06.7]} 67...
f4 {[%clk 0:01:08]} 68. Ra4 {[%clk 0:00:07.6]} 68... Rc3 {[%clk 0:01:06.8]} 69.
Ra8 {[%clk 0:00:08.2]} 69... Rc2+ {[%clk 0:01:04.8]} 70. Ke1 {[%clk 0:00:09.1]}
70... d3 {[%clk 0:01:03.8]} 71. Re8+ {[%clk 0:00:09.3]} 71... Kf3 {[%clk
0:01:04.3]} 72. Kd1 {[%clk 0:00:09.8]} 72... h3 {[%clk 0:01:03.9]} 73. Rd8
{[%clk 0:00:09.7]} 73... Ke3 {[%clk 0:01:00.4]} 74. Re8+ {[%clk 0:00:09.5]}
74... Kf3 {[%clk 0:00:55]} 75. Rd8 {[%clk 0:00:09.4]} 75... Rc3 {[%clk
0:00:55.6]} 76. Kd2 {[%clk 0:00:09.2]} 76... Ra3 {[%clk 0:00:56]} 77. Rh8 {[%clk
0:00:08.8]} 77... h2 {[%clk 0:00:54.3]} 78. Rg8 {[%clk 0:00:09.2]} 78... h1=Q
{[%clk 0:00:50.8]} 79. Rg3+ {[%clk 0:00:08]} 79... Ke4 {[%clk 0:00:49.3]} 80.
Re3+ {[%clk 0:00:07]} 80... fxe3# {[%clk 0:00:49.5]} 0-1